bitfinex/quotes_ETHUSD_20250605
["timestamp","ask_amount","ask_price","bid_price","bid_amount"]
[1749100758071,0.55,2622.8,2622.7,1.612]
[1749100758366,2.17789412,2622.8,2622.7,7.826]
[1749100758861,2.17789412,2622.8,2622.1,8.218]
[1749100759069,1.7912,2622.8,2622.7,6.217]
[1749100760152,1.7912,2622.8,2622.1,8.218]
[1749100760358,1.7912,2622.8,2622.7,6.216]
[1749100761565,1.7912,2622.8,2622.1,8.218]
[1749100761771,1.7912,2622.8,2622.7,6.214]
[1749100761970,2.30201412,2622.8,2622.7,6.214]
[1749100762972,2.30201412,2622.8,2622.1,8.218]
[1749100763168,1.7912,2622.8,2622.7,6.213]
[1749100763532,1.2412,2622.8,2622.7,6.213]
[1749100764440,1.2412,2622.8,2622.1,8.218]
[1749100764642,1.1895,2622.6,2622.1,8.218]
[1749100764955,1.1895,2622.6,2622.2,7.828]
[1749100765478,1.64012572,2622.6,2622.2,7.828]
[1749100766049,1.1895,2622.6,2622.2,7.828]
[1749100768163,1.1895,2622.6,2622.3,23.449788]
[1749100768651,1.1895,2622.6,2622.3,19.177463]
[1749100768851,1.1895,2622.6,2622.4,10.0]
[1749100769990,1.1895,2622.6,2622.3,14.463086]
[1749100770294,1.1895,2622.6,2622.3,10.0]
[1749100771204,0.000184,2622.9,2622.3,10.0]
[1749100771366,1.258884,2622.9,2622.2,8.4041]
[1749100771684,1.258884,2622.9,2622.3,19.0078]
[1749100772064,0.000184,2622.9,2622.4,0.5761]
[1749100772393,1.1986,2623.1,2622.7,10.0]
[1749100772588,1.1986,2623.1,2622.8,1.612]
[1749100774254,1.1986,2623.1,2622.6,10.0]
[1749100774511,1.1986,2623.1,2622.7,7.821]
[1749100774960,1.65013572,2623.1,2622.8,1.612]
[1749100775265,1.65013572,2623.1,2622.9,6.209]
[1749100776287,1.65013572,2623.1,2622.4,0.5761]
[1749100776493,1.65013572,2623.1,2622.5,7.82]
[1749100777188,0.98346905,2623.1,2622.5,7.82]
[1749100777952,0.98346905,2623.1,2622.6,6.206]
[1749100779166,0.55,2623.0,2622.4,10.0]
[1749100779361,0.55,2623.0,2622.5,7.816]
[1749100779963,0.55,2623.0,2622.5,1.612]
[1749100780190,1.164,2622.8,2622.6,6.21]
[1749100780459,1.164,2622.8,2622.7,7.821]
[1749100780811,1.714,2622.7,2622.1,11.505]
[1749100781001,1.714,2622.7,2622.2,7.822]
[1749100781169,1.714,2622.7,2622.2,1.612]
[1749100781361,5.57250049,2622.7,2622.1,11.505]
[1749100781607,5.57250049,2622.7,2622.2,7.821]
[1749100781812,1.714,2622.7,2622.2,7.821]
[1749100783609,1.714,2622.7,2622.3,6.207]
[1749100786026,1.164,2622.7,2622.3,6.207]
[1749100789058,1.164,2622.7,2622.4,16.0]
[1749100792052,1.164,2622.7,2622.2,17.612]
[1749100792256,1.164,2622.7,2622.6,16.0]
[1749100792467,1.164,2622.7,2622.6,6.2]
[1749100796488,1.164,2622.7,2622.6,14.419]
[1749100799450,1.164,2622.7,2622.6,9.825]
[1749100800582,1.714,2622.7,2622.6,9.825]
[1749100800783,5.61253292,2622.7,2622.6,9.825]
[1749100800985,5.1094572,2622.7,2622.6,16.018]
[1749100802451,1.7927,2622.7,2622.6,16.022]
[1749100804084,5.1094572,2622.7,2622.6,16.022]
[1749100805080,5.1094572,2622.7,2622.6,16.0]
[1749100805287,5.62040292,2622.7,2622.6,8.22]
[1749100805453,5.62040292,2622.7,2622.6,16.029]
[1749100805972,5.62040292,2622.7,2621.1,3.3367572]
[1749100805973,0.55,2622.6,2621.1,0.02]
[1749100806178,1.2095,2621.4,2621.2,16.038]
[1749100806584,1.2095,2621.4,2621.3,22.212]
[1749100806765,1.2095,2621.4,2621.3,6.212]
[1749100807291,1.2095,2621.4,2621.3,1.606]
[1749100808362,1.2095,2621.4,2621.3,7.817]
[1749100811759,1.2095,2621.4,2621.3,7.814]
[1749100812794,1.2095,2621.4,2621.3,1.606]
[1749100812964,1.66212572,2621.4,2621.3,7.813]
[1749100813159,1.66212572,2621.4,2620.2,3.3167572]
[1749100813473,1.66212572,2621.4,2620.4,12.743084]
[1749100813673,1.2095,2621.4,2620.6,25.01269]
[1749100813895,1.2095,2621.4,2620.6,15.39427736]
[1749100814197,1.2095,2621.4,2620.7,13.108534]
[1749100814597,1.2095,2621.4,2620.5,19.357673]
[1749100814891,1.2095,2621.4,2620.4,21.265081]
[1749100815273,1.2095,2621.4,2620.5,8.222]
[1749100815474,1.2095,2621.4,2620.7,11.326186]
[1749100816576,1.2095,2621.4,2620.7,11.70775673]
[1749100816781,1.2095,2621.4,2620.8,22.640359]
[1749100817177,1.2095,2621.4,2620.7,24.714717]
[1749100817500,0.55,2621.8,2621.0,3.3167572]
[1749100817501,1.1632,2621.8,2621.0,3.3167572]
[1749100817796,1.1632,2621.8,2621.1,6.211]
[1749100817965,3.3167572,2621.7,2621.2,7.818]
[1749100818161,3.3167572,2621.7,2621.3,7.818]
[1749100818365,3.3167572,2621.7,2621.4,1.61]
[1749100820770,1.61319572,2621.8,2621.4,1.61]
[1749100820977,1.1632,2621.8,2621.4,1.61]
[1749100821598,1.1632,2621.8,2621.5,1.61]
[1749100821908,1.1632,2621.8,2621.6,1.61]
[1749100822706,0.02,2621.9,2621.6,1.61]
[1749100822916,0.02,2621.9,2621.7,6.207]
[1749100823115,0.02,2621.9,2621.8,19.639787]
[1749100823298,0.02,2621.9,2621.8,8.754314]
[1749100824208,0.02,2621.9,2621.7,6.207]
[1749100825313,0.02,2621.9,2621.8,9.832]
[1749100826616,0.02,2621.9,2621.8,8.222]
[1749100826793,0.02,2621.9,2621.8,16.04]
[1749100828412,0.02,2621.9,2621.8,32.84431]
[1749100830014,0.02,2621.9,2621.8,26.549262]
[1749100831294,0.02,2621.9,2621.8,16.035]
[1749100832083,0.02,2621.9,2621.8,18.0531]
[1749100832617,0.02,2621.9,2621.8,18.1949]
[1749100833824,0.02,2621.9,2621.8,10.2401]
[1749100833986,0.02,2621.9,2621.8,16.031]
[1749100836993,0.02,2621.9,2621.8,9.831]
[1749100837193,0.02,2621.9,2621.8,16.028]
[1749100839448,0.02,2621.9,2621.8,9.831]
[1749100839639,0.02,2621.9,2621.8,16.026]
[1749100846660,0.02,2621.9,2621.8,42.006638]
[1749100846960,0.00196321,2621.9,2621.8,32.272898]
[1749100847460,0.00196321,2621.9,2621.8,30.964684]
[1749100848024,0.00196321,2621.9,2621.8,22.870684]
[1749100848221,0.00196321,2621.9,2621.8,29.062684]
[1749100849630,0.00196321,2621.9,2621.8,20.434973]
[1749100850138,0.00196321,2621.9,2621.8,16.023]
[1749100850535,0.00196321,2621.9,2621.8,42.934674]
[1749100850746,0.00196321,2621.9,2621.8,19.214]
[1749100851157,0.00196321,2621.9,2621.8,16.013]
[1749100852165,0.00196321,2621.9,2621.8,35.301184]
[1749100852377,0.00196321,2621.9,2621.8,35.082984]
[1749100852843,0.00196321,2621.9,2621.8,13.17770815]
[1749100853058,0.00196321,2621.9,2621.8,16.884709]
[1749100853363,0.00196321,2621.9,2621.8,5.466657]
[1749100853567,0.00196321,2621.9,2621.8,7.065657]
[1749100853946,0.00196321,2621.9,2621.8,13.257657]
[1749100855064,0.00196321,2621.9,2621.8,12.145711]
[1749100855272,0.00196321,2621.9,2621.8,20.366711]
[1749100855471,0.00196321,2621.9,2621.8,8.221]
[1749100855839,0.00196321,2621.9,2621.8,16.01]
[1749100856741,0.00019138,2621.9,2621.8,16.01]
[1749100859064,0.00019138,2621.9,2621.8,8.221]
[1749100859389,5.08094858,2621.9,2621.8,16.018]
[1749100859541,5.58904344,2621.9,2621.8,16.018]
[1749100860281,5.58904344,2621.9,2621.8,9.82]
[1749100860485,5.58904344,2621.9,2621.8,8.221]
[1749100860947,5.58904344,2621.9,2621.8,16.018]
[1749100861792,2.27228624,2621.9,2621.8,8.221]
[1749100861952,2.27228624,2621.9,2621.8,16.018]
[1749100862998,1.76419138,2621.9,2621.8,16.018]
[1749100863285,1.76419138,2621.9,2621.8,9.82]
[1749100863487,1.76419138,2621.9,2621.8,16.02]
[1749100865279,1.21419138,2621.9,2621.8,16.02]
[1749100868061,4.53094858,2621.9,2621.8,8.221]
[1749100868263,4.32004344,2621.9,2621.8,9.822]
[1749100868696,4.32004344,2621.9,2621.8,16.021]
[1749100868868,5.53384344,2621.9,2621.8,16.021]
[1749100870200,5.53384344,2621.9,2621.8,8.222]
[1749100870403,5.53384344,2621.9,2621.8,16.02]
[1749100873995,2.21708624,2621.9,2621.8,16.02]
[1749100874200,5.08074858,2621.9,2621.8,16.02]
[1749100874371,5.08074858,2621.9,2621.8,8.222]
[1749100874702,5.08074858,2621.9,2621.8,16.016]
[1749100875416,0.55,2621.4,2620.8,0.1262]
[1749100875619,0.78363,2621.4,2620.9,16.018]
[1749100875819,3.8667572,2621.4,2620.9,16.018]
[1749100876115,3.8667572,2621.4,2621.0,6.195]
[1749100878495,0.55,2621.4,2621.0,6.195]
[1749100879314,3.8667572,2621.4,2621.0,6.195]
[1749100880324,3.8667572,2621.4,2620.9,8.223]
[1749100880524,3.8667572,2621.4,2621.0,7.79]
[1749100880715,4.37706292,2621.4,2621.1,6.192]
[1749100882697,0.55,2621.4,2621.1,6.192]
[1749100884632,3.8667572,2621.4,2621.2,6.189]
[1749100885894,3.8667572,2621.4,2620.9,8.223]
[1749100886094,0.55,2621.4,2621.3,7.787]
[1749100886637,4.5857572,2621.7,2621.3,7.787]
[1749100886859,1.269,2621.7,2621.3,7.787]
[1749100887361,0.55,2621.8,2621.3,7.9905]
[1749100889627,1.26919138,2621.9,2621.3,7.9905]
[1749100889828,0.00019138,2621.9,2621.4,24.769948]
[1749100890056,0.00019138,2621.9,2621.4,14.625088]
[1749100890479,0.00019138,2621.9,2621.5,0.2035]
[1749100890962,0.00019138,2621.9,2621.6,8.223]
[1749100893069,0.00019138,2621.9,2621.7,16.2035]
[1749100893945,0.00019138,2621.9,2621.8,32.063256]
[1749100894119,1.2851,2622.6,2622.0,8.756911]
[1749100894355,1.2851,2622.6,2622.1,23.791]
[1749100895992,1.7815,2622.8,2622.2,0.2035]
[1749100896382,2.28186174,2622.8,2622.2,0.2035]
[1749100899403,1.7815,2622.8,2622.2,0.2035]
[1749100899917,1.2573,2622.4,2621.9,0.2035]
[1749100900113,3.3167572,2622.3,2621.7,0.2035]
[1749100900319,3.3167572,2622.3,2622.0,7.788]
[1749100900527,3.3167572,2622.3,2622.1,16.0]
[1749100901615,3.3167572,2622.3,2621.7,16.2035]
[1749100901817,3.3167572,2622.1,2621.9,16.0]
[1749100903117,3.3167572,2622.1,2621.8,1.598]
[1749100903321,3.3167572,2622.1,2622.0,6.191]
[1749100904084,3.3167572,2622.1,2621.8,1.598]
[1749100904320,1.2834,2622.0,2621.9,6.19]
[1749100904522,1.2834,2622.0,2621.7,16.0]
[1749100904728,3.3167572,2621.9,2621.7,16.0]
[1749100904899,3.3167572,2621.9,2621.8,1.598]
[1749100905103,3.3167572,2621.9,2621.8,7.789]
[1749100905303,1.8334,2622.0,2621.9,16.0]
[1749100905815,1.8334,2622.0,2621.8,7.789]
[1749100906328,2.34841572,2622.0,2621.8,7.789]
[1749100907819,2.34841572,2622.0,2621.9,16.0]
[1749100910128,2.34841572,2622.0,2621.8,1.598]
[1749100910303,2.34841572,2622.0,2621.9,6.187]
[1749100910706,2.34841572,2622.0,2621.9,6.186]
[1749100911331,2.34841572,2622.0,2621.9,1.596]
[1749100911691,0.55,2621.9,2621.6,8.223]
[1749100912015,3.3167572,2621.7,2620.6,0.2035]
[1749100912218,3.3167572,2620.8,2620.4,0.2035]
[1749100912734,3.3167572,2620.8,2620.5,6.211]
[1749100912908,3.3167572,2620.8,2620.4,0.2035]
[1749100913105,3.3167572,2620.8,2620.5,6.218]
[1749100913308,3.3167572,2620.8,2620.6,16.0]
[1749100913631,3.3167572,2620.8,2620.7,22.218]
[1749100913632,3.8667572,2620.8,2620.7,22.218]
[1749100914199,0.55,2620.8,2620.7,22.218]
[1749100914999,1.06453572,2620.8,2620.7,22.218]
[1749100915430,1.06453572,2620.8,2620.7,32.037]
[1749100915831,0.55,2620.8,2620.7,32.037]
[1749100918639,1.2786,2620.9,2620.7,16.037]
[1749100919011,1.8286,2620.9,2620.8,1.596]
[1749100919736,3.3167572,2621.2,2620.8,1.596]
[1749100920034,0.45160572,2621.1,2620.8,1.596]
[1749100920336,0.45160572,2621.1,2620.9,6.213]
[1749100921245,1.1993,2621.3,2620.9,6.213]
[1749100921545,0.02,2620.9,2620.8,1.596]
[1749100921757,0.02,2620.9,2620.8,8.625156]
[1749100921909,0.02,2620.9,2620.8,7.282482]
[1749100922447,0.02,2620.9,2620.8,1.596]
[1749100922947,0.02,2620.9,2620.8,7.808]
[1749100923350,0.02,2620.9,2620.8,23.539359]
[1749100923556,0.02,2620.9,2620.8,20.96207]
[1749100924628,0.02,2620.9,2620.8,17.545417]
[1749100924943,0.02,2620.9,2620.8,13.189317]
[1749100925311,0.02,2620.9,2620.8,22.006538]
[1749100925526,0.02,2620.9,2620.8,9.82]
[1749100925734,0.02,2620.9,2620.8,16.033]
[1749100929624,0.02,2620.9,2620.8,9.82]
[1749100929824,0.02,2620.9,2620.8,16.029]
[1749100930856,0.02,2620.9,2620.8,9.82]
[1749100931060,0.02,2620.9,2620.8,16.028]
[1749100932768,0.02,2620.9,2620.8,16.026]
[1749100932928,0.02,2620.9,2620.8,9.82]
[1749100933261,0.02,2620.9,2620.8,16.026]
[1749100935347,0.02,2620.9,2620.8,16.024]
[1749100939178,0.0015289,2620.9,2620.8,37.0673742]
[1749100939757,0.0015289,2620.9,2620.8,19.4921]
[1749100943970,0.0015289,2620.9,2620.8,22.8088572]
[1749100944171,0.0015289,2620.9,2620.8,13.9760442]
[1749100945049,0.0015289,2620.9,2620.8,13.9700442]
[1749100945260,0.0015289,2620.9,2620.8,22.1940442]
[1749100946472,0.0015289,2620.9,2620.8,22.2220442]
[1749100946874,0.0015289,2620.9,2620.8,12.707287]
[1749100947176,0.0015289,2620.9,2620.8,16.031]
[1749100947941,0.0015289,2620.9,2620.8,9.827]
[1749100948171,0.0015289,2620.9,2620.8,16.03]
[1749100948472,1.2171289,2620.9,2620.8,8.224]
[1749100948773,1.67051751,2620.9,2620.8,16.03]
[1749100949146,1.67051751,2620.9,2620.8,9.827]
[1749100949346,2.22051751,2620.9,2620.8,9.827]
[1749100949652,5.53727471,2620.9,2620.8,16.032]
[1749100950248,5.53727471,2620.9,2620.8,16.031]
[1749100950651,5.53727471,2620.9,2620.8,8.224]
[1749100950856,5.53727471,2620.9,2620.8,16.032]
[1749100952372,5.53727471,2620.9,2620.8,9.827]
[1749100952543,5.53727471,2620.9,2620.8,16.032]
[1749100953757,5.53727471,2620.9,2620.8,8.224]
[1749100953980,5.53727471,2620.9,2620.8,16.031]
[1749100954756,2.22051751,2620.9,2620.8,16.031]
[1749100954973,5.0838861,2620.9,2620.8,16.031]
[1749100957849,5.0838861,2620.9,2620.8,16.029]
[1749100961884,5.0838861,2620.9,2620.8,8.224]
[1749100962086,5.0838861,2620.9,2620.8,16.026]
[1749100963607,0.2,2620.0,2619.4,19.750762]
[1749100963811,0.2,2620.0,2619.6,21.108358]
[1749100964007,0.2,2620.0,2619.6,8.932358]
[1749100964767,0.01504718,2620.0,2619.7,6.202]
[1749100965290,0.01504718,2620.0,2619.8,8.226]
[1749100965456,0.01504718,2620.0,2619.8,14.427]
[1749100965864,0.02,2619.9,2619.8,14.427]
[1749100966398,0.02,2619.9,2619.8,28.751803]
[1749100966599,0.02,2619.9,2619.8,21.157656]
[1749100966827,0.02,2619.9,2619.8,12.579556]
[1749100967099,0.02,2619.9,2619.8,18.779556]
[1749100968395,0.02,2619.9,2619.8,18.0623]
[1749100968698,0.02,2619.9,2619.8,14.426]
[1749100968884,1.2807,2619.9,2619.8,8.226]
[1749100969194,5.1474572,2619.9,2619.8,16.031]
[1749100969411,5.66370764,2619.9,2619.8,16.031]
[1749100970109,5.1474572,2619.9,2619.8,16.031]
[1749100971414,1.8307,2619.9,2619.8,16.031]
[1749100972783,0.02,2619.9,2619.8,16.031]
[1749100973129,0.02,2619.9,2619.8,1.602]
[1749100973503,0.01504718,2619.8,2619.3,10.099555]
[1749100973815,0.01504718,2619.6,2619.4,1.602]
[1749100974115,0.01504718,2619.6,2619.0,3.3167572]
[1749100974286,0.01504718,2619.6,2619.2,10.0]
[1749100974716,0.01504718,2619.6,2619.3,10.0]
[1749100975016,0.00105943,2619.6,2619.3,5.953755]
[1749100975404,0.00105943,2619.6,2619.4,8.227]
[1749100976183,0.00105943,2619.6,2619.5,7.81]
[1749100977139,0.00105943,2619.6,2619.5,7.809]
[1749100977799,0.00105943,2619.6,2619.5,1.603]
[1749100978007,0.00105943,2619.6,2619.5,7.809]
[1749100978837,0.00105943,2619.6,2619.5,7.808]
[1749100980404,0.00105943,2619.6,2619.4,8.227]
[1749100980611,0.00105943,2619.6,2619.5,7.807]
[1749100981227,0.00105943,2619.6,2619.5,1.603]
[1749100981433,0.00105943,2619.6,2619.5,7.806]
[1749100981742,0.00105943,2619.6,2619.5,1.603]
[1749100982825,0.00105943,2619.6,2619.5,7.805]
[1749100985060,7.026e-05,2619.6,2619.5,7.805]
[1749100985259,7.026e-05,2619.6,2619.5,16.033]
[1749100986070,0.02,2619.9,2619.6,19.184472]
[1749100986270,0.02,2619.9,2619.6,18.159472]
[1749100990230,0.02,2619.9,2619.5,16.033]
[1749100993837,0.02,2619.9,2619.7,10.0]
[1749100994331,0.02,2619.9,2619.6,8.532203]
[1749100995269,0.00142802,2619.9,2619.6,8.532203]
[1749100995572,0.00142802,2619.9,2619.5,9.831]
[1749100995573,0.00142802,2619.9,2619.7,6.194]
[1749101000170,0.00142802,2619.9,2619.8,2.9142]
[1749101004048,1.1664289,2620.9,2619.9,10.0]
[1749101004245,1.1664289,2620.9,2620.1,10.0]
[1749101004443,1.1664289,2620.9,2620.3,12.226971]
[1749101004677,0.55,2620.8,2620.3,11.223237]
[1749101004878,1.61474751,2620.9,2620.3,11.223237]
[1749101005084,0.55,2620.8,2620.3,4.887822]
[1749101005576,0.55,2620.8,2620.2,1.597]
[1749101006563,0.55,2620.6,2620.3,7.789]
[1749101006768,0.55,2620.6,2620.4,1.597]
[1749101009729,0.55,2620.6,2619.2,1.96277631]
[1749101009730,0.55,2620.6,2619.6,3.3167572]
[1749101009919,0.55,2620.6,2619.8,18.473183]
[1749101010760,0.55,2620.6,2619.8,16.264383]
[1749101012169,0.55,2620.6,2619.9,30.0]
[1749101012349,0.55,2620.6,2619.9,24.264582]
[1749101012647,1.1593,2620.7,2619.9,19.830647]
[1749101012962,0.55,2620.8,2619.9,19.830647]
[1749101013873,0.0015289,2620.9,2620.0,3.3167572]
[1749101014047,0.0015289,2620.9,2620.3,17.957812]
[1749101014236,0.0015289,2620.9,2620.5,12.752644]
[1749101014432,0.0015289,2620.9,2620.4,1.597]
[1749101014737,1.2819289,2620.9,2620.4,1.597]
[1749101019070,0.55,2620.8,2620.4,1.597]
[1749101019274,0.55,2620.6,2620.5,6.194]
[1749101021175,0.55,2620.6,2620.4,1.597]
[1749101021476,0.55,2620.6,2620.5,7.789]
[1749101021677,1.05683572,2620.6,2620.5,7.789]
[1749101022176,1.05683572,2620.6,2620.5,1.597]
[1749101022355,1.05683572,2620.6,2620.5,7.788]
[1749101023243,0.55,2620.6,2620.5,7.788]
[1749101025344,0.55,2620.6,2620.5,16.013]
[1749101029893,0.55,2620.8,2620.5,16.013]
[1749101031084,0.55,2620.8,2620.6,1.597]
[1749101032281,0.55,2620.8,2620.7,6.19]
[1749101032581,1.05466861,2620.8,2620.7,6.19]
[1749101034073,0.55,2620.8,2620.6,1.597]
[1749101034296,0.55,2620.8,2620.7,6.19]
[1749101034501,3.8667572,2620.8,2620.7,6.19]
[1749101035205,0.55,2620.6,2619.5,30.0]
[1749101035501,4.5564572,2620.7,2619.7,14.254624]
[1749101035674,4.5564572,2620.7,2619.9,28.421831]
[1749101036000,5.01225581,2620.7,2619.9,18.061831]
[1749101036203,5.01225581,2620.7,2619.9,11.504829]
[1749101036404,5.01225581,2620.7,2619.9,8.565124]
[1749101037404,0.55,2620.6,2619.9,8.565124]
[1749101042396,0.55,2620.6,2620.0,9.823]
[1749101042598,1.10622558,2620.6,2620.0,9.823]
[1749101043509,1.10622558,2620.6,2620.1,6.19]
[1749101044548,0.55,2620.6,2620.1,6.19]
[1749101045212,1.2397,2620.7,2620.1,6.19]
[1749101052327,1.1997,2620.2,2620.0,8.226]
[1749101052533,0.58075538,2620.2,2620.1,7.787]
[1749101054490,0.55,2620.6,2620.1,7.787]
[1749101054715,0.93667572,2620.6,2620.1,7.787]
[1749101055531,1.2347,2620.5,2620.1,7.787]
[1749101058715,1.2347,2620.5,2620.2,6.191]
[1749101059426,1.2347,2620.5,2620.3,1.597]
[1749101060722,1.7847,2620.5,2620.4,6.191]
[1749101060929,2.38851329,2620.5,2620.3,1.597]
[1749101061108,2.38851329,2620.5,2620.4,6.191]
[1749101065543,2.38851329,2620.5,2620.4,14.417]
[1749101068052,1.794,2620.5,2620.4,14.417]
[1749101071251,1.794,2620.5,2620.4,8.226]
[1749101071460,5.1107572,2620.5,2620.4,14.417]
[1749101071621,5.1107572,2620.5,2620.4,8.226]
[1749101071823,5.1107572,2620.5,2620.4,16.014]
[1749101072022,5.62183292,2620.5,2620.4,16.014]
[1749101073056,5.62183292,2620.5,2620.4,9.823]
[1749101073221,5.62183292,2620.5,2620.4,16.014]
[1749101074578,1.06107572,2620.5,2620.4,16.014]
[1749101085238,0.55,2620.5,2620.4,16.014]
[1749101087174,3.2101993,2620.5,2620.4,16.014]
[1749101089165,3.2101993,2620.5,2620.4,8.226]
[1749101089372,3.2101993,2620.5,2620.4,16.013]
[1749101093455,1.1444,2620.8,2620.4,16.013]
[1749101093660,0.55,2620.7,2620.4,16.013]
[1749101094398,0.98561282,2620.7,2620.4,16.013]
[1749101100495,0.55,2620.7,2620.4,16.013]
[1749101104639,0.55,2620.8,2620.4,16.013]
[1749101106087,0.5515289,2620.9,2620.4,16.013]
[1749101107726,0.0015289,2620.9,2620.4,16.013]
[1749101108019,0.0015289,2620.9,2620.6,10.0]
[1749101108217,0.0015289,2620.9,2620.5,9.606522]
[1749101108439,0.0015289,2620.9,2620.5,9.21103]
[1749101109392,0.0015289,2620.9,2620.5,8.782377]
[1749101111146,0.00012733,2620.9,2620.6,6.189]
[1749101113197,0.00012733,2620.9,2620.5,16.33738]
[1749101113834,0.00012733,2620.9,2620.5,14.79738]
[1749101114404,0.00012733,2620.9,2620.7,10.0]
[1749101114626,0.00012733,2620.9,2620.6,6.189]
[1749101116513,0.00012733,2620.9,2620.7,6.188]
[1749101118205,0.00012733,2620.9,2620.8,1.596]
[1749101124754,0.00012733,2620.9,2620.8,26.193454]
[1749101125051,1.1535,2621.4,2620.9,10.022876]
[1749101128466,1.1535,2621.4,2620.9,8.851252]
[1749101128631,1.1535,2621.4,2621.0,6.187]
[1749101128820,1.1535,2621.4,2621.0,14.411]
[1749101129325,4.47640887,2621.4,2621.0,14.411]
[1749101131332,1.1535,2621.4,2621.0,14.411]
[1749101132924,0.55,2621.6,2621.0,14.411]
[1749101133123,3.32290887,2621.5,2621.0,14.411]
[1749101133554,1.1904,2621.4,2621.0,14.411]
[1749101134875,0.55,2621.7,2621.0,14.411]
[1749101135353,0.55,2621.7,2621.1,16.907858]
[1749101135526,0.55,2621.7,2621.1,6.187]
[1749101136562,1.2235,2621.6,2621.1,6.187]
[1749101137566,0.55,2621.5,2621.2,7.781]
[1749101137722,0.55,2621.3,2621.0,8.224]
[1749101137922,0.55,2621.3,2621.1,7.781]
[1749101140572,0.55,2621.3,2621.2,1.595]
[1749101140772,0.55,2621.3,2620.3,3.32290887]
[1749101140976,1.1885,2621.1,2620.4,1.595]
[1749101141155,1.1885,2621.1,2620.1,3.32290887]
[1749101141156,1.1885,2621.1,2620.5,1.595]
[1749101141845,1.1885,2621.1,2620.6,6.186]
[1749101143081,0.02,2620.9,2620.6,6.186]
[1749101143269,0.00181689,2620.9,2620.6,6.186]
[1749101143781,0.00181689,2620.9,2620.2,22.566643]
[1749101144292,0.00181689,2620.9,2620.3,16.0]
[1749101144493,0.00181689,2620.9,2620.2,16.0]
[1749101144651,0.00181689,2620.9,2620.3,15.816596]
[1749101144988,0.00181689,2620.9,2620.5,16.0]
[1749101145345,0.00181689,2620.9,2620.7,16.0]
[1749101146790,0.00181689,2620.9,2620.8,16.0]
[1749101146950,0.00181689,2620.9,2620.8,23.781]
[1749101147347,0.00181689,2620.9,2620.8,24.330899]
[1749101147550,0.00181689,2620.9,2620.8,30.19721]
[1749101147784,0.00181689,2620.9,2620.8,28.347616]
[1749101148455,0.00181689,2620.9,2620.8,25.995751]
[1749101148655,0.00181689,2620.9,2620.8,23.781]
[1749101150889,0.55,2620.8,2620.6,8.224]
[1749101151194,5.05150887,2620.7,2620.6,24.224]
[1749101151490,1.7286,2620.7,2620.6,32.005]
[1749101157168,2.23393258,2620.7,2620.6,24.224]
[1749101157380,5.55684145,2620.7,2620.6,32.005]
[1749101161690,5.55684145,2620.7,2620.6,24.224]
[1749101162010,5.55684145,2620.7,2620.6,32.006]
[1749101163639,5.53934145,2620.7,2620.6,24.224]
[1749101163919,0.55,2620.4,2619.0,2.18964]
[1749101164118,4.48400887,2619.8,2619.1,6.187]
[1749101164295,4.48400887,2619.8,2619.2,16.0]
[1749101164692,1.1611,2619.8,2619.2,2.650181]
[1749101164924,1.1611,2619.8,2619.4,16.0]
[1749101165125,0.55,2620.3,2619.6,16.0]
[1749101165287,0.55,2620.3,2619.8,16.0]
[1749101165686,0.55,2620.3,2619.9,3.8839]
[1749101165997,1.2213,2620.4,2620.1,16.0]
[1749101168226,3.87290887,2620.3,2620.2,16.0]
[1749101168424,3.87290887,2620.3,2620.2,17.595]
[1749101168615,5.06670887,2620.3,2620.2,23.782]
[1749101169090,5.06670887,2620.3,2620.2,16.0]
[1749101169290,5.06670887,2620.3,2620.2,23.782]
[1749101169485,5.57337976,2620.3,2620.2,23.782]
[1749101170303,2.25047089,2620.3,2620.2,23.782]
[1749101171632,5.57337976,2620.3,2620.2,23.782]
[1749101172684,1.7438,2620.3,2620.2,23.782]
[1749101173902,1.7438,2620.3,2620.2,17.595]
[1749101174223,1.7438,2620.3,2620.2,23.783]
[1749101175102,1.2022,2620.6,2619.9,16.0]
[1749101175303,1.2022,2620.6,2620.2,7.783]
[1749101175506,0.55,2620.5,2620.3,16.0]
[1749101176606,0.55,2620.5,2620.4,22.188]
[1749101177024,0.55,2620.5,2620.4,23.783]
[1749101180611,0.55,2620.5,2620.4,17.595]
[1749101180818,1.05751089,2620.5,2620.4,23.783]
[1749101182631,2.27741089,2620.5,2620.4,17.595]
[1749101182830,2.27741089,2620.5,2620.4,23.783]
[1749101183714,2.27741089,2620.5,2620.4,7.783]
[1749101183915,1.7699,2620.7,2620.4,7.783]
[1749101185925,1.7699,2620.7,2620.5,14.415]
[1749101186433,3.32290887,2620.6,2620.5,30.415]
[1749101189002,3.32290887,2620.6,2620.5,24.227]
[1749101189203,3.32290887,2620.6,2620.5,30.415]
[1749101189404,3.83218976,2620.6,2620.5,30.415]
[1749101189743,4.38218976,2620.6,2620.5,30.415]
[1749101190836,5.53468976,2620.6,2620.5,14.415]